bitfinex-derivatives/quotes_SOLF0:USTF0_20250819
["timestamp","ask_amount","ask_price","bid_price","bid_amount"]
[1755606579110,4.40438594,182.27,182.17,2.9]
[1755606579309,4.40438594,182.26,182.17,2.9]
[1755606579509,3.61885581,182.28,182.17,2.9]
[1755606579710,4.40490194,182.27,182.17,2.9]
[1755606579912,4.40490194,182.26,182.17,2.9]
[1755606580112,3.61885581,182.28,182.17,2.9]
[1755606580305,4.40523227,182.27,182.17,2.9]
[1755606580507,4.40523227,182.26,182.17,2.9]
[1755606580706,3.61885581,182.28,182.17,2.9]
[1755606581013,4.4055872,182.27,182.17,2.9]
[1755606581215,4.4055872,182.26,182.17,2.9]
[1755606581414,3.61885581,182.28,182.17,2.9]
[1755606581712,4.4062536,182.27,182.17,2.9]
[1755606582012,4.4062536,182.26,182.17,2.9]
[1755606582213,3.61885581,182.28,182.17,2.9]
[1755606582511,4.40655587,182.27,182.17,2.9]
[1755606582710,4.40655587,182.26,182.17,2.9]
[1755606582912,3.61885581,182.28,182.17,2.9]
[1755606583110,4.40804416,182.27,182.17,2.9]
[1755606583316,4.40804416,182.26,182.17,2.9]
[1755606583717,3.61885581,182.28,182.17,2.9]
[1755606584014,4.41025802,182.27,182.17,2.9]
[1755606584212,4.41025802,182.26,182.17,2.9]
[1755606584413,3.61885581,182.28,182.17,2.9]
[1755606584609,4.41243006,182.27,182.17,2.9]
[1755606584811,4.41243006,182.26,182.17,2.9]
[1755606585114,3.61885581,182.28,182.17,2.9]
[1755606585314,4.41247584,182.27,182.17,2.9]
[1755606585514,4.41247584,182.26,182.17,2.9]
[1755606585713,3.61885581,182.28,182.17,2.9]
[1755606585910,4.41230429,182.27,182.17,4.58818286]
[1755606586114,4.41230429,182.26,182.18,2.9]
[1755606586319,3.61885581,182.28,182.18,2.9]
[1755606586616,4.41248462,182.27,182.18,2.9]
[1755606586916,4.41248462,182.26,182.18,2.9]
[1755606587119,3.61885581,182.28,182.18,2.9]
[1755606587309,4.41432549,182.27,182.18,2.9]
[1755606587514,4.41432549,182.26,182.18,2.9]
[1755606587714,3.61885581,182.28,182.18,2.9]
[1755606587913,4.41449579,182.27,182.18,2.9]
[1755606588115,4.41449579,182.26,182.18,2.9]
[1755606588315,4.41449579,182.25,182.18,2.9]
[1755606588519,3.61885581,182.28,182.18,2.9]
[1755606588813,4.41592172,182.27,182.18,2.9]
[1755606589018,4.41592172,182.26,182.18,2.9]
[1755606589219,4.41592172,182.25,182.18,2.9]
[1755606589415,3.61885581,182.28,182.18,2.9]
[1755606589616,4.41734227,182.27,182.18,2.9]
[1755606589815,4.41734227,182.26,182.18,2.9]
[1755606590114,3.61885581,182.28,182.18,2.9]
[1755606590115,4.41734227,182.25,182.18,2.9]
[1755606590421,3.61885581,182.28,182.18,2.9]
[1755606590719,4.4186967,182.27,182.18,2.9]
[1755606590921,4.4186967,182.26,182.18,2.9]
[1755606591120,4.4186967,182.25,182.18,2.9]
[1755606591320,4.4186967,182.24,182.18,2.9]
[1755606591525,3.61885581,182.28,182.18,2.9]
[1755606591820,7.07370637,182.27,182.18,2.9]
[1755606592123,4.43319722,182.26,182.18,2.9]
[1755606592316,4.43319722,182.25,182.18,2.9]
[1755606592517,4.43319722,182.24,182.18,2.9]
[1755606592722,3.61885581,182.28,182.18,2.9]
[1755606592910,7.06662128,182.27,182.18,2.9]
[1755606593116,4.43346255,182.26,182.18,4.60326842]
[1755606593316,4.43346255,182.25,182.19,3.01]
[1755606593516,4.43346255,182.24,182.19,3.01]
[1755606593715,3.61885581,182.28,182.19,3.01]
[1755606593919,4.43380095,182.27,182.19,3.01]
[1755606594114,4.43380095,182.26,182.19,3.01]
[1755606594315,4.43380095,182.25,182.19,3.01]
[1755606594515,4.43380095,182.24,182.19,3.01]
[1755606594715,3.61885581,182.28,182.19,3.01]
[1755606594917,4.43420511,182.27,182.19,3.01]
[1755606595217,4.43420511,182.26,182.19,3.01]
[1755606595417,4.43420511,182.25,182.19,3.01]
[1755606595620,4.43420511,182.24,182.18,3.01]
[1755606595824,3.61885581,182.28,182.18,3.01]
[1755606596023,7.06901834,182.27,182.18,3.01]
[1755606596218,4.43498629,182.26,182.18,3.01]
[1755606596428,4.43498629,182.25,182.18,7.61326842]
[1755606596626,4.43498629,182.24,182.18,7.61326842]
[1755606596924,3.61885581,182.28,182.18,7.61326842]
[1755606597227,7.06961503,182.27,182.18,3.01]
[1755606597425,4.43535402,182.26,182.18,7.61326842]
[1755606597618,4.43535402,182.25,182.18,7.61326842]
[1755606597819,4.43535402,182.24,182.18,7.61326842]
[1755606598021,4.43535402,182.23,182.19,3.01]
[1755606598216,3.61885581,182.28,182.19,3.01]
[1755606598523,7.07180344,182.27,182.19,3.01]
[1755606598727,4.43672042,182.26,182.19,3.01]
[1755606599029,4.43672042,182.25,182.19,3.01]
[1755606599226,4.43672042,182.24,182.2,3.01]
[1755606599426,4.43748377,182.23,182.18,4.60326842]
[1755606599627,3.61885581,182.28,182.21,3.01]
[1755606599825,7.07319681,182.27,182.21,3.01]
[1755606600026,7.07319681,182.26,182.21,3.01]
[1755606600332,10.69259968,182.25,182.17,7.61326842]
[1755606600629,7.07374387,182.24,182.17,3.01]
[1755606600827,3.61885581,182.22,182.14,7.61326842]
[1755606601125,4.43756934,182.21,182.14,7.61326842]
[1755606601327,4.43933817,182.2,182.14,7.61326842]
[1755606601527,4.43933817,182.19,182.14,4.60326842]
[1755606601728,3.61885581,182.22,182.14,3.01]
[1755606601925,4.43933817,182.21,182.14,3.01]
[1755606602122,4.43933817,182.2,182.14,3.01]
[1755606602318,4.43933817,182.19,182.13,4.60326842]
[1755606602522,4.43933817,182.18,182.13,4.60326842]
[1755606602829,3.61885581,182.22,182.16,3.01]
[1755606603030,4.52395589,182.21,182.16,3.01]
[1755606603330,4.52395589,182.2,182.17,3.01]
[1755606603529,5.9772944,182.27,182.18,3.01]
[1755606603836,7.15670597,182.26,182.18,3.01]
[1755606604025,7.15662042,182.25,182.18,3.01]
[1755606604229,4.52204034,182.24,182.18,3.01]
[1755606604430,4.52204034,182.23,182.19,3.01]
[1755606604629,4.52204034,182.22,182.21,3.01]
[1755606605228,3.61885581,182.3,182.21,3.01]
[1755606605528,7.15542877,182.29,182.21,3.01]
[1755606605733,7.15542877,182.28,182.21,3.01]
[1755606605932,7.15542877,182.27,182.21,3.01]
[1755606606134,4.52126817,182.26,182.18,4.60326842]
[1755606606327,4.52126817,182.25,182.22,3.01]
[1755606606533,3.61885581,182.3,182.22,3.01]
[1755606606731,6.96002322,182.29,182.22,3.01]
[1755606606923,2.63415952,182.28,182.22,3.01]
[1755606607122,2.63415952,182.27,182.18,4.60326842]
[1755606607333,3.61885581,182.3,182.24,3.01]
[1755606607523,3.61885581,182.3,182.21,3.01]
[1755606607524,2.63447731,182.29,182.21,3.01]
[1755606607743,2.63447731,182.28,182.21,3.01]
[1755606607936,2.63447731,182.27,182.21,3.01]
[1755606608237,3.61885581,182.3,182.21,3.01]
[1755606608433,2.63550027,182.29,182.21,3.01]
[1755606608625,2.63550027,182.28,182.18,4.60326842]
[1755606608935,6.25435608,182.27,182.19,3.01]
[1755606609136,2.63550027,182.26,182.19,3.01]
[1755606609934,3.61885581,182.27,182.19,3.01]
[1755606610233,4.15175438,182.26,182.19,3.01]
[1755606610536,3.61885581,182.3,182.2,3.01]
[1755606610736,6.7886436,182.29,182.2,3.01]
[1755606610936,4.15234442,182.28,182.21,3.01]
[1755606611137,4.15234442,182.27,182.21,3.01]
[1755606611332,3.61885581,182.3,182.21,3.01]
[1755606611530,6.78807581,182.29,182.21,3.01]
[1755606611741,4.1519625,182.28,182.21,3.01]
[1755606611930,4.1519625,182.27,182.21,3.01]
[1755606612137,3.61885581,182.3,182.21,3.01]
[1755606612330,6.78798338,182.29,182.21,3.01]
[1755606612533,6.78798321,182.28,182.21,3.01]
[1755606612734,4.15190615,182.27,182.21,3.01]
[1755606612940,3.61885581,182.3,182.21,3.01]
[1755606613342,6.78805189,182.29,182.21,3.01]
[1755606613542,4.15194794,182.28,182.21,3.01]
[1755606613736,4.15194794,182.27,182.21,3.01]
[1755606613934,3.61885581,182.3,182.21,3.01]
[1755606614134,6.78805189,182.29,182.21,3.01]
[1755606614434,4.15194794,182.28,182.21,3.01]
[1755606614629,4.15194794,182.27,182.21,3.01]
[1755606614841,3.61885581,182.3,182.21,3.01]
[1755606615042,6.78839706,182.29,182.21,3.01]
[1755606615341,4.15215899,182.28,182.21,3.01]
[1755606615534,4.15215899,182.27,182.21,3.01]
[1755606615844,4.15215899,182.26,182.21,3.01]
[1755606616036,4.15215899,182.25,182.21,3.01]
[1755606616242,3.61885581,182.3,182.21,3.01]
[1755606616441,6.78873999,182.29,182.21,3.01]
[1755606616641,6.78873999,182.28,182.21,3.01]
[1755606616843,6.78865945,182.27,182.21,3.01]
[1755606617140,4.15241508,182.26,182.22,3.01]
[1755606617340,3.61885581,182.3,182.22,3.01]
[1755606617538,6.78842586,182.29,182.22,3.01]
[1755606617839,3.61885581,182.27,182.19,3.01]
[1755606618035,6.78842586,182.26,182.19,3.01]
[1755606618237,4.15220557,182.25,182.19,3.01]
[1755606618436,4.15220557,182.24,182.2,3.01]
[1755606618740,4.15220557,182.23,182.22,3.01]
[1755606619142,3.61885581,182.27,182.22,3.01]
[1755606619341,4.54636998,182.26,182.22,3.01]
[1755606619540,4.54636998,182.25,182.22,3.01]
[1755606619742,4.54636998,182.24,182.22,3.01]
[1755606620043,4.54648689,182.23,182.22,3.01]
[1755606620237,4.54648037,182.23,182.22,3.01]
[1755606621136,4.54648037,182.23,182.2,3.01]
[1755606621345,3.61885581,182.27,182.2,3.01]
[1755606621644,4.50881543,182.26,182.2,3.01]
[1755606621839,4.50881543,182.25,182.21,3.01]
[1755606622047,4.50881543,182.24,182.23,3.01]
[1755606623168,3.61885581,182.31,182.23,3.01]
[1755606623342,7.1424234,182.3,182.23,3.01]
[1755606623542,7.1424234,182.29,182.23,3.01]
[1755606623749,4.5084819,182.28,182.2,4.60326842]
[1755606623950,4.5084819,182.27,182.25,2.96]
[1755606624147,4.5084819,182.26,182.25,2.96]
[1755606624746,4.5084819,182.26,182.21,2.96]
[1755606625051,4.5084819,182.25,182.18,7.56326842]
[1755606625257,4.5084819,182.24,182.18,7.56326842]
[1755606625556,3.61885581,182.28,182.19,2.96]
[1755606625849,6.84230225,182.27,182.19,2.96]
[1755606626040,6.84230225,182.26,182.19,2.96]
[1755606626243,4.20827183,182.25,182.19,2.96]
[1755606626440,3.61885581,182.28,182.19,2.96]
[1755606626640,6.84232409,182.27,182.19,2.96]
[1755606626851,6.84232409,182.26,182.19,2.96]
[1755606627054,4.20828526,182.25,182.19,2.96]
[1755606627258,3.61885581,182.28,182.19,2.96]
[1755606627446,6.84222982,182.27,182.19,2.96]
[1755606627648,6.84222982,182.26,182.19,2.96]
[1755606627854,4.20821926,182.25,182.19,2.96]
[1755606628054,3.61885581,182.28,182.19,2.96]
[1755606628349,7.23648286,182.27,182.19,2.96]
[1755606628655,7.23648286,182.26,182.19,2.96]
[1755606628854,4.60242284,182.25,182.19,2.96]
[1755606629046,4.60242318,182.24,182.18,4.60326842]
[1755606629252,4.60242318,182.23,182.19,2.96]
[1755606629454,4.60242318,182.22,182.21,2.96]
[1755606630557,4.60242318,182.22,182.18,7.56326842]
[1755606630751,4.60242318,182.21,182.16,4.60326842]
[1755606631054,4.60242318,182.21,182.14,7.56326842]
[1755606631258,4.60242318,182.2,182.14,7.56326842]
[1755606631552,4.60254841,182.19,182.14,7.56326842]
[1755606631858,4.60254841,182.18,182.14,2.96]
[1755606632053,4.60254841,182.17,182.14,2.96]
[1755606632254,3.61885581,182.19,182.14,2.96]
[1755606632555,4.60137843,182.18,182.14,2.96]
[1755606632747,3.61885581,182.19,182.14,2.96]
[1755606632948,4.60137843,182.18,182.14,2.96]
[1755606633146,3.61885581,182.19,182.14,2.96]
[1755606633344,4.60010928,182.18,182.14,2.96]
[1755606633559,3.61885581,182.19,182.14,2.96]
[1755606633750,4.60010928,182.18,182.14,2.96]
[1755606633952,3.61885581,182.19,182.12,4.60326842]
[1755606633953,4.60010928,182.17,182.12,7.56326842]
[1755606634151,3.61885581,182.19,182.12,7.56326842]
[1755606634360,4.59899841,182.18,182.12,2.96]
[1755606634561,4.59899841,182.17,182.12,2.96]
[1755606634859,3.61885581,182.19,182.12,2.96]
[1755606635154,4.59916965,182.18,182.12,2.96]
[1755606635353,4.59916965,182.17,182.12,2.96]
[1755606635553,3.61885581,182.19,182.13,2.96]
[1755606635753,4.59762788,182.18,182.12,2.96]
[1755606635950,4.59762788,182.17,182.11,7.56326842]
[1755606636153,3.61885581,182.19,182.11,7.56326842]
[1755606636353,4.59628797,182.18,182.11,7.56326842]
[1755606636559,4.59628797,182.17,182.11,7.56326842]
[1755606636860,3.61885581,182.19,182.11,7.56326842]
[1755606637059,4.59628797,182.18,182.11,7.56326842]
[1755606637261,4.59628797,182.17,182.11,2.96]
[1755606637559,8.21425728,182.16,182.11,2.96]
[1755606637765,4.59557479,182.15,182.08,7.56326842]
[1755606637961,3.61885581,182.16,182.08,7.56326842]
[1755606639064,3.61885581,182.16,182.08,2.96]
[1755606639065,4.59376464,182.15,182.08,2.96]
[1755606639265,4.59376464,182.14,182.08,2.96]
[1755606639462,3.61885581,182.16,182.08,2.96]
[1755606639658,4.59162845,182.15,182.08,2.96]
[1755606639863,4.59162845,182.14,182.08,2.96]
[1755606640063,3.61885581,182.13,182.08,2.96]
[1755606640560,3.61885581,182.13,182.05,107.54395267]
[1755606640775,3.61885581,182.13,182.05,2.96]
[1755606640776,4.58990189,182.12,182.05,2.96]
[1755606640959,3.61885581,182.13,182.05,2.96]
[1755606641159,3.61885581,182.1,182.03,7.56326842]
[1755606641368,3.61885581,182.1,182.03,2.96]
[1755606641963,4.58750441,182.09,181.98,7.56326842]
[1755606642167,3.61885581,182.16,181.99,2.96]
[1755606642168,3.61885581,182.07,181.99,2.96]
[1755606660867,3.61885581,182.04,181.94,2.99]
[1755606661268,3.61885581,182.01,181.94,2.99]
[1755606661672,3.61885581,181.98,181.94,2.99]
[1755606662775,3.61885581,182.01,181.88,2.99]
[1755606663379,3.61885581,182.01,181.89,2.99]
[1755606664178,3.61885581,182.01,181.9,5.4956]
[1755606664375,369.1,182.09,181.91,2.99]
[1755606664676,3.61885581,182.04,181.91,2.99]
[1755606664979,3.61885581,182.06,181.93,2.99]
[1755606665178,4.55767611,182.05,181.93,2.99]
[1755606665376,3.61885581,182.06,181.93,2.99]
[1755606665580,4.55795793,182.05,181.93,2.99]
[1755606665883,4.55795793,182.04,181.93,2.99]
[1755606666180,8.17608317,182.03,181.93,2.99]
[1755606666381,4.55722736,182.02,181.93,2.99]
[1755606666681,3.61885581,182.03,181.93,2.99]
[1755606666882,4.55723329,182.02,181.93,2.99]
[1755606667077,3.61885581,182.03,181.93,2.99]
[1755606667284,4.55820621,182.02,181.93,2.99]
[1755606667481,3.61885581,182.03,181.93,2.99]
[1755606667683,4.55789113,182.02,181.93,2.99]
[1755606667885,3.61885581,182.03,181.93,2.99]
[1755606668081,4.55789113,182.02,181.93,2.99]
[1755606668281,3.61885581,182.03,181.93,2.99]
[1755606668481,4.55922975,182.02,181.93,2.99]
[1755606668678,3.61885581,182.03,181.93,2.99]
[1755606668874,4.55922975,182.02,181.93,2.99]
[1755606669081,3.61885581,182.03,181.93,2.99]
[1755606669283,4.56004093,182.02,181.93,2.99]
[1755606669487,3.61885581,182.03,181.93,2.99]
[1755606669782,4.55989248,182.02,181.93,2.99]
[1755606670079,3.61885581,182.03,181.93,2.99]
[1755606670282,4.56139099,182.02,181.93,2.99]
[1755606670585,4.56139099,182.01,181.93,2.99]
[1755606670778,3.61885581,182.03,181.93,2.99]
[1755606670978,4.56109597,182.02,181.93,2.99]
[1755606671179,4.56109597,182.01,181.93,2.99]
[1755606671383,3.61885581,182.03,181.93,2.99]
[1755606671582,4.56169077,182.02,181.93,2.99]
[1755606671785,4.56169077,182.01,181.93,2.99]
[1755606672089,3.61885581,182.03,181.93,2.99]
[1755606672286,4.56419587,182.02,181.94,2.99]
[1755606672480,137.77885581,182.06,181.94,2.99]
[1755606672690,4.56508206,182.05,181.94,3.61885581]
[1755606672886,134.16,182.06,181.95,2.99]
[1755606673182,4.56776897,182.05,181.95,2.99]
[1755606673384,372.71885581,182.09,181.99,2.99]
[1755606673580,4.5688346,182.08,181.99,2.99]
[1755606673886,4.5688346,182.07,181.99,2.99]
[1755606674086,3.61885581,182.16,182.01,2.99]
[1755606674276,4.55824925,182.15,182.04,2.99]
[1755606674581,4.55824925,182.14,182.04,2.99]
[1755606674787,4.55824925,182.13,182.04,2.99]
[1755606674986,372.83885581,182.19,182.04,8.4813]
[1755606675190,372.83885581,182.19,182.05,2.99]
[1755606675191,4.55860485,182.18,182.05,2.99]
[1755606675381,4.55860485,182.17,182.05,2.99]
[1755606675579,4.55860485,182.16,182.05,2.99]
[1755606675778,4.55860485,182.18,182.05,2.99]
[1755606675983,3.61885581,182.16,182.05,2.99]
[1755606676206,4.55860485,182.15,182.05,2.99]
[1755606676383,3.61885581,182.13,182.05,2.99]
[1755606676587,4.55860485,182.12,182.05,2.99]
[1755606677289,3.61885581,182.1,182.05,2.99]
[1755606677487,4.55860485,182.09,182.01,2.99]
[1755606678485,4.55860485,182.08,182.01,2.99]
[1755606678681,8.17746066,182.07,181.97,2.99]
[1755606678889,4.55860485,182.06,181.97,2.99]
[1755606679193,3.61885581,182.04,181.97,2.99]
[1755606680086,3.61885581,182.07,181.97,2.99]
[1755606680283,4.57076029,182.06,181.97,2.99]
[1755606680483,4.57076029,182.05,181.97,2.99]
[1755606680687,4.57124089,182.04,181.97,2.99]
[1755606680883,3.61885581,182.07,181.97,2.99]
[1755606681087,4.57442567,182.06,181.97,2.99]
[1755606681287,4.57442567,182.05,181.97,2.99]
[1755606681490,4.57442567,182.04,181.97,2.99]
[1755606681692,4.57442567,182.03,181.97,2.99]
[1755606681993,3.61885581,182.04,181.97,2.99]
[1755606682196,4.57649023,182.03,181.97,2.99]
[1755606682383,4.57649023,182.02,181.98,3.17]
[1755606682584,3.61885581,182.04,181.98,3.17]
[1755606682790,4.57944303,182.03,181.98,3.17]
[1755606683083,3.61885581,182.04,181.98,3.17]
[1755606683292,4.57936499,182.03,181.99,3.17]
[1755606683593,3.61885581,182.04,181.99,3.17]
[1755606683789,4.57786049,182.03,181.99,3.17]
[1755606683994,3.61885581,182.04,181.99,3.17]
[1755606684190,3.61885581,182.04,181.94,10.06375123]
[1755606684392,4.5800323,182.03,181.96,3.17]
[1755606684592,3.61885581,182.04,181.96,3.17]
[1755606684795,4.57966917,182.03,181.96,3.17]
[1755606684994,4.57966917,182.02,181.96,3.17]
[1755606685189,3.61885581,182.04,181.96,3.17]
[1755606685391,4.58122338,182.03,181.96,3.17]
[1755606685584,4.58122338,182.02,181.96,3.17]
[1755606685786,8.20007919,182.01,181.93,4.56935123]
[1755606685985,4.58122338,182.0,181.93,3.17]
[1755606686186,3.61885581,182.01,181.93,7.73935123]
[1755606686394,4.58199907,182.0,181.94,3.17]
[1755606686593,3.61885581,182.01,181.94,3.17]
[1755606686794,4.58199907,182.0,181.94,3.17]
[1755606686996,3.61885581,182.01,181.94,3.17]
[1755606689406,4.58051427,182.0,181.92,4.56935123]
[1755606689638,3.61885581,182.01,181.92,4.56935123]
[1755606689898,4.58029558,182.0,181.91,3.17]
[1755606690091,4.58029558,181.99,181.91,3.17]
[1755606690297,3.61885581,182.01,181.91,3.17]
[1755606690496,4.5791153,182.0,181.91,3.17]
[1755606690688,4.5791153,181.99,181.91,3.17]
[1755606690893,3.61885581,182.01,181.91,3.17]
[1755606691093,4.57911529,182.0,181.91,3.17]
[1755606691395,3.61885581,182.01,181.91,3.17]
[1755606691598,4.57897454,182.0,181.91,3.17]
[1755606691788,3.61885581,182.01,181.91,3.17]
[1755606691992,4.57897454,182.0,181.91,3.17]
[1755606692298,3.61885581,182.01,181.91,3.17]
[1755606692500,4.57901277,182.0,181.91,3.17]
[1755606692702,3.61885581,182.01,181.91,3.17]
[1755606693000,4.57901277,182.0,181.91,3.17]
[1755606693200,3.61885581,182.01,181.91,3.17]
[1755606693403,4.57870628,182.0,181.91,3.17]
[1755606693595,3.61885581,182.01,181.91,3.17]
[1755606693796,4.57870627,182.0,181.91,3.17]
[1755606694092,3.61885581,182.01,181.91,3.17]
[1755606694291,4.57755045,182.0,181.91,3.17]
[1755606694498,3.61885581,182.01,181.91,3.17]
[1755606694699,4.57731491,182.0,181.91,3.17]
[1755606694895,3.61885581,182.01,181.91,3.17]
[1755606695101,4.57731491,182.0,181.91,3.17]
[1755606695299,3.61885581,181.98,181.91,3.17]
[1755606695604,4.57611106,181.97,181.88,3.17]
[1755606695902,3.61885581,181.98,181.88,3.17]
[1755606696102,3.61885581,181.95,181.88,3.17]
[1755606696697,3.61885581,181.95,181.85,7.77729125]
[1755606697303,3.61885581,181.95,181.85,3.17]
[1755606697998,3.61885581,181.95,181.85,8.6672]
[1755606698198,3.61885581,181.95,181.86,3.17]
[1755606700204,3.61885581,181.98,181.86,3.17]
[1755606700405,3.61885581,181.98,181.88,3.17]
[1755606700908,3.61885581,181.98,181.88,8.6662]
[1755606701101,3.61885581,181.98,181.89,3.17]
[1755606702906,3.61885581,181.98,181.9,3.17]
[1755606704011,0.95660899,182.06,181.9,3.17]
[1755606704210,3.61885581,181.99,181.9,3.17]
[1755606711116,3.61885581,181.96,181.86,3.17]
[1755606712112,3.61885581,181.99,181.87,7.76945902]
[1755606712314,3.61885581,181.96,181.88,3.17]
[1755606714513,3.61885581,181.96,181.89,3.02]
[1755606716417,3.61885581,181.96,181.89,8.516]
[1755606716820,3.61885581,181.96,181.89,3.02]
[1755606719019,3.61885581,181.96,181.85,13.11645902]
[1755606719319,3.61885581,181.96,181.86,7.61945902]
[1755606719511,3.61885581,181.96,181.86,3.02]
[1755606721319,4.5522685,181.95,181.86,3.02]
[1755606721521,3.61885581,181.96,181.86,7.61945902]
[1755606721717,3.61885581,181.96,181.87,3.02]
[1755606723214,4.55270092,181.95,181.87,3.02]
[1755606723418,3.61885581,181.96,181.87,3.02]
[1755606723614,4.55390879,181.95,181.87,3.02]
[1755606723820,3.61885581,181.96,181.87,3.02]
[1755606724020,4.55320182,181.95,181.87,3.02]
[1755606724219,3.61885581,181.96,181.87,3.02]
[1755606724421,4.55326942,181.95,181.87,3.02]
[1755606724617,3.61885581,181.96,181.87,3.02]
[1755606724922,4.55274482,181.95,181.87,3.02]
[1755606725220,3.61885581,181.96,181.87,3.02]
[1755606725420,4.55253523,181.95,181.87,3.02]
[1755606725617,4.55253523,181.94,181.87,3.02]
[1755606725921,3.61885581,181.96,181.87,3.02]
[1755606726115,4.55401616,181.95,181.87,3.02]
[1755606726316,4.55504523,181.94,181.87,3.02]
[1755606726511,3.61885581,181.96,181.87,3.02]
[1755606726922,4.55504523,181.95,181.87,3.02]
[1755606727119,3.61885581,181.96,181.87,3.02]
[1755606727320,4.55592854,181.95,181.87,3.02]
[1755606727514,4.55590349,181.94,181.87,3.02]
[1755606727820,3.61885581,181.96,181.87,3.02]
[1755606728021,4.55550449,181.95,181.87,3.02]
[1755606728220,4.55550449,181.94,181.87,3.02]
[1755606728423,8.1743603,181.93,181.85,7.61945902]
[1755606728623,3.61885581,181.93,181.85,7.61945902]
[1755606728829,3.61885581,181.93,181.86,3.02]
[1755606730426,3.61885581,181.93,181.86,7.61945902]
[1755606730821,3.61885581,181.93,181.86,3.02]
[1755606731823,3.61885581,181.93,181.86,7.61945902]
[1755606732225,4.56046079,181.92,181.86,7.61945902]
[1755606732426,3.61885581,181.93,181.86,7.61945902]
[1755606733924,4.56190658,181.92,181.86,7.61945902]
[1755606734132,3.61885581,181.93,181.86,7.61945902]
[1755606734324,4.56292417,181.92,181.86,7.61945902]
[1755606734525,3.61885581,181.93,181.86,7.61945902]
[1755606734723,4.56292417,181.92,181.86,7.61945902]
[1755606734922,3.61885581,181.93,181.86,7.61945902]
[1755606735428,4.56279501,181.92,181.86,7.61945902]
[1755606735629,3.61885581,181.93,181.86,7.61945902]
[1755606735828,4.5621409,181.92,181.86,7.61945902]
[1755606736033,3.61885581,181.93,181.86,7.61945902]
[1755606736231,4.5621409,181.92,181.86,7.61945902]
[1755606736433,3.61885581,181.93,181.86,4.59945902]
[1755606736733,4.64654116,181.92,181.86,4.59945902]
[1755606736928,4.64654116,181.91,181.86,7.61945902]
[1755606737129,3.61885581,181.93,181.86,3.02]
[1755606737429,4.64642414,181.92,181.86,3.02]
[1755606737726,3.61885581,181.9,181.85,4.59945902]
[1755606737939,3.61885581,181.87,181.82,7.61945902]
[1755606738440,3.61885581,181.87,181.81,4.59945902]
[1755606738937,3.61885581,181.92,181.8,4.59945902]
[1755606739135,3.61885581,181.87,181.81,3.02]
[1755606743735,3.61885581,181.9,181.81,3.02]
[1755606743936,3.61885581,181.93,181.82,4.59945902]
[1755606744243,4.63305718,181.92,181.83,3.14]
[1755606744542,5.9772944,182.0,181.84,3.14]
[1755606744740,3.61885581,181.96,181.84,4.59945902]
[1755606744942,4.63310231,181.95,181.85,3.14]
[1755606745141,4.63310231,181.94,181.85,3.14]
[1755606745452,4.63310231,181.93,181.85,3.14]
[1755606745642,3.61885581,181.96,181.85,3.14]
[1755606745942,4.6331963,181.95,181.85,3.14]
[1755606746142,4.6331963,181.94,181.85,3.14]
[1755606746346,4.6331963,181.93,181.85,3.14]
[1755606746547,3.61885581,181.96,181.85,3.14]
[1755606746743,4.63251908,181.95,181.85,3.14]
[1755606746941,4.63251908,181.94,181.85,3.14]
[1755606747140,8.25137489,181.93,181.85,3.14]
[1755606747442,4.63251908,181.92,181.85,3.14]
[1755606747642,3.61885581,181.93,181.85,3.14]
[1755606747643,4.63251908,181.91,181.85,3.14]
[1755606747944,4.63251908,181.9,181.82,3.14]
[1755606748145,3.61885581,181.93,181.83,4.59945902]
[1755606748343,4.63122985,181.92,181.85,3.14]
[1755606748645,3.61885581,181.96,181.85,3.14]
[1755606748847,4.63125859,181.95,181.85,7.73945902]
[1755606749041,4.63125859,181.94,181.86,3.14]